[Event "Titled Tuesday Blitz August 1 Early 2023"]
[White "Lamaze, Simon"]
[Black "Ozates, Tuna"]
[WhiteFideId "36069264"]
[BlackFideId "6354521"]
[WhiteElo "2774"]
[BlackElo "2618"]
[Result "1-0"]
[Round "5"]
[TimeControl "180+1"]
[Date "2023.08.01"]
[WhiteClock "0:00:56"]
[BlackClock "0:00:09"]
[Board "42"]

1. c4 {[%clk 0:03:00]}  e6 {[%clk 0:02:55]} 2. d4 {[%clk 0:02:52]}  d5 {[%clk 0:02:55]} 3. Nf3 {[%clk 0:02:48]}  Nf6 {[%clk 0:02:55]} 4. g3 {[%clk 0:02:48]}  Bb4+ {[%clk 0:02:52]} 5. Nbd2 {[%clk 0:02:49]}  O-O {[%clk 0:02:52]} 6. Bg2 {[%clk 0:02:48]}  b6 {[%clk 0:02:52]} 7. Ne5 {[%clk 0:02:45]}  Nbd7 {[%clk 0:02:45]} 8. Nc6 {[%clk 0:02:41]}  Bxd2+ {[%clk 0:02:44]} 9. Bxd2 {[%clk 0:02:42]}  Qe8 {[%clk 0:02:45]} 10. Bb4 {[%clk 0:02:42]}  Bb7 {[%clk 0:01:44]} 11. Bxf8 {[%clk 0:02:39]}  Qxf8 {[%clk 0:01:44]} 12. cxd5 {[%clk 0:02:39]}  exd5 {[%clk 0:01:42]} 13. Ne5 {[%clk 0:02:38]}  Nxe5 {[%clk 0:01:37]} 14. dxe5 {[%clk 0:02:37]}  Ne4 {[%clk 0:01:38]} 15. O-O {[%clk 0:02:36]}  Qe7 {[%clk 0:01:35]} 16. Bxe4 {[%clk 0:02:02]}  dxe4 {[%clk 0:01:33]} 17. Qd4 {[%clk 0:02:01]}  c5 {[%clk 0:01:24]} 18. Qc3 {[%clk 0:01:50]}  Re8 {[%clk 0:01:19]} 19. Rad1 {[%clk 0:01:48]}  h5 {[%clk 0:01:15]} 20. Rd6 {[%clk 0:01:46]}  Qxe5 {[%clk 0:01:10]} 21. Qxe5 {[%clk 0:01:41]}  Rxe5 {[%clk 0:01:11]} 22. Rd7 {[%clk 0:01:40]}  Bd5 {[%clk 0:01:01]} 23. Rxa7 {[%clk 0:01:38]}  e3 {[%clk 0:01:01]} 24. f4 {[%clk 0:01:33]}  Re4 {[%clk 0:00:59]} 25. Rd1 {[%clk 0:01:31]}  Bc4 {[%clk 0:00:58]} 26. Kf1 {[%clk 0:01:31]}  h4 {[%clk 0:00:50]} 27. b3 {[%clk 0:01:29]}  Be6 {[%clk 0:00:49]} 28. Ra4 {[%clk 0:01:25]}  c4 {[%clk 0:00:46]} 29. bxc4 {[%clk 0:01:24]}  Bxc4 {[%clk 0:00:46]} 30. Ra8+ {[%clk 0:01:23]}  Kh7 {[%clk 0:00:46]} 31. Rad8 {[%clk 0:01:24]}  b5 {[%clk 0:00:43]} 32. R8d4 {[%clk 0:01:10]}  Re7 {[%clk 0:00:36]} 33. a4 {[%clk 0:01:09]}  Bb3 {[%clk 0:00:35]} 34. axb5 {[%clk 0:01:00]}  Bxd1 {[%clk 0:00:34]} 35. Rxd1 {[%clk 0:01:01]}  h3 {[%clk 0:00:23]} 36. Rb1 {[%clk 0:01:00]}  Kg6 {[%clk 0:00:22]} 37. b6 {[%clk 0:00:59]}  Rb7 {[%clk 0:00:22]} 38. Rb5 {[%clk 0:00:57]}  Kf6 {[%clk 0:00:22]} 39. Ke1 {[%clk 0:00:57]}  Ke6 {[%clk 0:00:23]} 40. Kd1 {[%clk 0:00:57]}  Kd6 {[%clk 0:00:23]} 41. Kc2 {[%clk 0:00:57]}  Kc6 {[%clk 0:00:23]} 42. Rb3 {[%clk 0:00:57]}  f6 {[%clk 0:00:19]} 43. Kd3 {[%clk 0:00:57]}  Rd7+ {[%clk 0:00:18]} 44. Kxe3 {[%clk 0:00:57]}  Kb7 {[%clk 0:00:19]} 45. Kf3 {[%clk 0:00:56]}  Rd1 {[%clk 0:00:18]} 46. Kg4 {[%clk 0:00:56]}  Re1 {[%clk 0:00:17]} 47. e3 {[%clk 0:00:57]}  g6 {[%clk 0:00:12]} 48. Kxh3 {[%clk 0:00:57]}  Re2 {[%clk 0:00:12]} 49. g4 {[%clk 0:00:55]}  Rf2 {[%clk 0:00:12]} 50. Kg3 {[%clk 0:00:54]}  Rf1 {[%clk 0:00:12]} 51. h4 {[%clk 0:00:55]}  Rg1+ {[%clk 0:00:11]} 52. Kf3 {[%clk 0:00:55]}  Rf1+ {[%clk 0:00:12]} 53. Ke4 {[%clk 0:00:55]}  Rg1 {[%clk 0:00:09]} 54. g5 {[%clk 0:00:56]} 1-0


[Site "https://www.chess.com"]

[Event "Titled Tuesday Blitz August 1 Early 2023"]
[White "Jain Kashish Manoj"]
[Black "Kushko, Dmitriy"]
[WhiteFideId "35081098"]
[BlackFideId "14162261"]
[WhiteElo "2612"]
[BlackElo "2770"]
[Result "0-1"]
[Round "5"]
[TimeControl "180+1"]
[Date "2023.08.01"]
[WhiteClock "0:00:00"]
[BlackClock "0:00:09"]
[Board "43"]

1. e4 {[%clk 0:03:00]}  g6 {[%clk 0:03:00]} 2. d4 {[%clk 0:02:59]}  Bg7 {[%clk 0:03:00]} 3. Nf3 {[%clk 0:03:00]}  d6 {[%clk 0:03:00]} 4. Nc3 {[%clk 0:02:58]}  a6 {[%clk 0:03:00]} 5. a4 {[%clk 0:02:55]}  Nf6 {[%clk 0:02:58]} 6. Be2 {[%clk 0:02:52]}  O-O {[%clk 0:02:58]} 7. O-O {[%clk 0:02:53]}  Nc6 {[%clk 0:02:58]} 8. d5 {[%clk 0:02:48]}  Nb4 {[%clk 0:02:58]} 9. a5 {[%clk 0:02:46]}  e6 {[%clk 0:02:57]} 10. Be3 {[%clk 0:02:10]}  exd5 {[%clk 0:02:55]} 11. exd5 {[%clk 0:02:10]}  Bf5 {[%clk 0:02:46]} 12. Nd4 {[%clk 0:02:08]}  Bd7 {[%clk 0:02:45]} 13. Bf3 {[%clk 0:01:58]}  Re8 {[%clk 0:02:35]} 14. Qd2 {[%clk 0:01:48]}  Bg4 {[%clk 0:02:17]} 15. Ra4 {[%clk 0:01:37]}  Bxf3 {[%clk 0:02:10]} 16. Nxf3 {[%clk 0:01:37]}  c5 {[%clk 0:02:09]} 17. dxc6 {[%clk 0:01:37]}  Nxc6 {[%clk 0:02:09]} 18. Bb6 {[%clk 0:01:37]}  Qd7 {[%clk 0:02:03]} 19. Rd1 {[%clk 0:01:36]}  d5 {[%clk 0:01:49]} 20. b3 {[%clk 0:01:10]}  Qf5 {[%clk 0:01:41]} 21. h3 {[%clk 0:00:56]}  Ne4 {[%clk 0:01:34]} 22. Nxe4 {[%clk 0:00:52]}  dxe4 {[%clk 0:01:35]} 23. Nd4 {[%clk 0:00:37]}  Nxd4 {[%clk 0:01:34]} 24. Bxd4 {[%clk 0:00:38]}  Rad8 {[%clk 0:01:34]} 25. Qe3 {[%clk 0:00:32]}  Rd5 {[%clk 0:01:19]} 26. Rb4 {[%clk 0:00:18]}  Qd7 {[%clk 0:01:01]} 27. c3 {[%clk 0:00:07]}  Rxa5 {[%clk 0:00:59]} 28. Re1 {[%clk 0:00:05]}  f5 {[%clk 0:00:45]} 29. Bxg7 {[%clk 0:00:05]}  Qxg7 {[%clk 0:00:45]} 30. Qb6 {[%clk 0:00:04]}  Qxc3 {[%clk 0:00:37]} 31. Re3 {[%clk 0:00:01]}  Qa1+ {[%clk 0:00:32]} 32. Kh2 {[%clk 0:00:02]}  Qe5+ {[%clk 0:00:27]} 33. g3 {[%clk 0:00:01]}  f4 {[%clk 0:00:27]} 34. Rexe4 {[%clk 0:00:01]}  fxg3+ {[%clk 0:00:26]} 35. fxg3 {[%clk 0:00:01]}  Ra2+ {[%clk 0:00:25]} 36. Kh1 {[%clk 0:00:02]}  Ra1+ {[%clk 0:00:11]} 37. Kg2 {[%clk 0:00:00]}  Qb2+ {[%clk 0:00:09]} 0-1


[Site "https://www.chess.com"]

[Event "Titled Tuesday Blitz August 1 Early 2023"]
[White "Siniauski, Artsiom"]
[Black "Starozhilov, Leonid"]
[WhiteFideId "13512269"]
[BlackFideId "14106752"]
[WhiteElo "2584"]
[BlackElo "2751"]
[Result "0-1"]
[Round "5"]
[TimeControl "180+1"]
[Date "2023.08.01"]
[WhiteClock "0:00:00"]
[BlackClock "0:00:03"]
[Board "48"]

1. e4 {[%clk 0:02:58]}  g6 {[%clk 0:02:59]} 2. d4 {[%clk 0:02:58]}  Bg7 {[%clk 0:03:00]} 3. Ne2 {[%clk 0:02:54]}  d6 {[%clk 0:02:58]} 4. g3 {[%clk 0:02:54]}  c5 {[%clk 0:02:57]} 5. dxc5 {[%clk 0:02:51]}  Qa5+ {[%clk 0:02:56]} 6. Nbc3 {[%clk 0:02:51]}  Qxc5 {[%clk 0:02:57]} 7. Be3 {[%clk 0:02:50]}  Qa5 {[%clk 0:02:51]} 8. Bg2 {[%clk 0:02:50]}  Nf6 {[%clk 0:02:51]} 9. O-O {[%clk 0:02:49]}  O-O {[%clk 0:02:51]} 10. Qd2 {[%clk 0:02:45]}  Nc6 {[%clk 0:02:50]} 11. Rad1 {[%clk 0:02:37]}  Bd7 {[%clk 0:02:48]} 12. Nd5 {[%clk 0:02:30]}  Qxd2 {[%clk 0:02:46]} 13. Rxd2 {[%clk 0:02:29]}  Nxd5 {[%clk 0:02:39]} 14. exd5 {[%clk 0:02:28]}  Ne5 {[%clk 0:02:39]} 15. b3 {[%clk 0:02:26]}  Rfc8 {[%clk 0:02:35]} 16. h3 {[%clk 0:02:22]}  Bxh3 {[%clk 0:02:23]} 17. Bxh3 {[%clk 0:01:52]}  Nf3+ {[%clk 0:02:22]} 18. Kg2 {[%clk 0:01:51]}  Nxd2 {[%clk 0:02:23]} 19. Bxd2 {[%clk 0:01:50]}  Rxc2 {[%clk 0:02:23]} 20. Rd1 {[%clk 0:01:51]}  Rxa2 {[%clk 0:02:19]} 21. Kf1 {[%clk 0:01:37]}  f5 {[%clk 0:02:09]} 22. Bg5 {[%clk 0:01:32]}  Rc8 {[%clk 0:01:57]} 23. Nd4 {[%clk 0:01:01]}  Bxd4 {[%clk 0:01:31]} 24. Rxd4 {[%clk 0:01:02]}  Rcc2 {[%clk 0:01:31]} 25. Be3 {[%clk 0:01:02]}  h5 {[%clk 0:01:24]} 26. Kg1 {[%clk 0:00:50]}  Ra1+ {[%clk 0:01:18]} 27. Bf1 {[%clk 0:00:38]}  Rb2 {[%clk 0:01:11]} 28. Kg2 {[%clk 0:00:38]}  Rxb3 {[%clk 0:01:08]} 29. Rc4 {[%clk 0:00:39]}  Rxe3 {[%clk 0:00:56]} 30. fxe3 {[%clk 0:00:36]}  Kf7 {[%clk 0:00:36]} 31. e4 {[%clk 0:00:28]}  Kf6 {[%clk 0:00:29]} 32. exf5 {[%clk 0:00:26]}  gxf5 {[%clk 0:00:30]} 33. Be2 {[%clk 0:00:24]}  Ra5 {[%clk 0:00:22]} 34. Bf3 {[%clk 0:00:22]}  Ra2+ {[%clk 0:00:16]} 35. Kf1 {[%clk 0:00:19]}  b5 {[%clk 0:00:14]} 36. Rc7 {[%clk 0:00:17]}  b4 {[%clk 0:00:13]} 37. Rb7 {[%clk 0:00:16]}  a5 {[%clk 0:00:13]} 38. Bxh5 {[%clk 0:00:16]}  Ra3 {[%clk 0:00:11]} 39. Kf2 {[%clk 0:00:15]}  b3 {[%clk 0:00:11]} 40. Bd1 {[%clk 0:00:12]}  a4 {[%clk 0:00:12]} 41. Rb4 {[%clk 0:00:05]}  Ra2+ {[%clk 0:00:12]} 42. Ke3 {[%clk 0:00:05]}  Ke5 {[%clk 0:00:10]} 43. Bf3 {[%clk 0:00:04]}  b2 {[%clk 0:00:08]} 44. Be2 {[%clk 0:00:03]}  a3 {[%clk 0:00:06]} 45. Bd3 {[%clk 0:00:04]}  Ra1 {[%clk 0:00:05]} 46. Kd2 {[%clk 0:00:04]}  Kxd5 {[%clk 0:00:05]} 47. Rb5+ {[%clk 0:00:04]}  Kc6 {[%clk 0:00:05]} 48. Rb3 {[%clk 0:00:05]}  e6 {[%clk 0:00:05]} 49. Kc3 {[%clk 0:00:05]}  d5 {[%clk 0:00:04]} 50. Kb4 {[%clk 0:00:05]}  Kd6 {[%clk 0:00:04]} 51. Bc2 {[%clk 0:00:05]}  Ke5 {[%clk 0:00:04]} 52. Kc3 {[%clk 0:00:05]}  Kf6 {[%clk 0:00:04]} 53. Rb6 {[%clk 0:00:05]}  Kg5 {[%clk 0:00:03]} 54. Kd2 {[%clk 0:00:05]}  e5 {[%clk 0:00:03]} 55. Rb5 {[%clk 0:00:05]}  d4 {[%clk 0:00:03]} 56. Rb3 {[%clk 0:00:05]}  e4 {[%clk 0:00:03]} 57. Rb5 {[%clk 0:00:00]}  d3 {[%clk 0:00:03]} 0-1


[Site "https://www.chess.com"]

[Event "Titled Tuesday Blitz August 1 Early 2023"]
[White "Demin, Vladimir"]
[Black "Xu, Yi"]
[WhiteFideId "4167457"]
[BlackFideId "8605564"]
[WhiteElo "2572"]
[BlackElo "2745"]
[Result "0-1"]
[Round "5"]
[TimeControl "180+1"]
[Date "2023.08.01"]
[WhiteClock "0:00:41"]
[BlackClock "0:01:12"]
[Board "50"]

1. d4 {[%clk 0:03:00]}  Nf6 {[%clk 0:02:56]} 2. Nc3 {[%clk 0:02:57]}  e6 {[%clk 0:02:56]} 3. e4 {[%clk 0:02:53]}  d5 {[%clk 0:02:57]} 4. Bg5 {[%clk 0:02:51]}  dxe4 {[%clk 0:02:55]} 5. Nxe4 {[%clk 0:02:49]}  Be7 {[%clk 0:02:55]} 6. Nxf6+ {[%clk 0:02:48]}  Bxf6 {[%clk 0:02:55]} 7. Bxf6 {[%clk 0:02:48]}  Qxf6 {[%clk 0:02:56]} 8. Nf3 {[%clk 0:02:49]}  O-O {[%clk 0:02:51]} 9. Qd3 {[%clk 0:02:47]}  c5 {[%clk 0:02:48]} 10. Qe4 {[%clk 0:02:38]}  Nc6 {[%clk 0:02:26]} 11. Bd3 {[%clk 0:02:36]}  g6 {[%clk 0:02:27]} 12. c3 {[%clk 0:01:47]}  cxd4 {[%clk 0:02:26]} 13. cxd4 {[%clk 0:01:47]}  Rd8 {[%clk 0:02:10]} 14. O-O-O {[%clk 0:01:38]}  Nxd4 {[%clk 0:01:52]} 15. Bb1 {[%clk 0:01:35]}  e5 {[%clk 0:01:17]} 16. Nxe5 {[%clk 0:00:41]}  Bf5 {[%clk 0:01:12]} 0-1


[Site "https://www.chess.com"]

[Event "Titled Tuesday Blitz August 1 Early 2023"]
[White "Matinian, Nikita"]
[Black "Ordekalog"]
[WhiteFideId "24129100"]
[WhiteElo "2743"]
[BlackElo "2543"]
[Result "1-0"]
[Round "5"]
[TimeControl "180+1"]
[Date "2023.08.01"]
[WhiteClock "0:00:14"]
[BlackClock "0:00:20"]
[Board "52"]

1. e4 {[%clk 0:02:36]}  c5 {[%clk 0:02:57]} 2. Nf3 {[%clk 0:02:33]}  Nc6 {[%clk 0:02:57]} 3. Bb5 {[%clk 0:02:34]}  g6 {[%clk 0:02:55]} 4. O-O {[%clk 0:02:33]}  Bg7 {[%clk 0:02:55]} 5. d3 {[%clk 0:02:34]}  d6 {[%clk 0:02:53]} 6. Re1 {[%clk 0:02:33]}  e6 {[%clk 0:02:53]} 7. Bxc6+ {[%clk 0:02:23]}  bxc6 {[%clk 0:02:52]} 8. e5 {[%clk 0:02:18]}  Ne7 {[%clk 0:02:49]} 9. exd6 {[%clk 0:02:16]}  Qxd6 {[%clk 0:02:49]} 10. Nbd2 {[%clk 0:02:16]}  O-O {[%clk 0:02:46]} 11. Ne4 {[%clk 0:02:14]}  Qd5 {[%clk 0:02:44]} 12. c4 {[%clk 0:02:14]}  Qd8 {[%clk 0:02:22]} 13. Nxc5 {[%clk 0:02:14]}  Nf5 {[%clk 0:02:21]} 14. Qa4 {[%clk 0:01:58]}  Bd7 {[%clk 0:02:17]} 15. Rb1 {[%clk 0:01:40]}  Be8 {[%clk 0:02:04]} 16. b4 {[%clk 0:01:38]}  Nd4 {[%clk 0:01:59]} 17. Nxd4 {[%clk 0:01:36]}  Bxd4 {[%clk 0:01:59]} 18. Be3 {[%clk 0:01:37]}  Bg7 {[%clk 0:01:56]} 19. Rbd1 {[%clk 0:01:29]}  a5 {[%clk 0:01:55]} 20. bxa5 {[%clk 0:01:10]}  Rxa5 {[%clk 0:01:51]} 21. Qb3 {[%clk 0:01:07]}  Qa8 {[%clk 0:01:38]} 22. a4 {[%clk 0:01:03]}  Qc8 {[%clk 0:01:25]} 23. d4 {[%clk 0:01:01]}  f5 {[%clk 0:01:23]} 24. Bf4 {[%clk 0:00:57]}  Bf7 {[%clk 0:01:20]} 25. Be5 {[%clk 0:00:57]}  Bxe5 {[%clk 0:01:15]} 26. Rxe5 {[%clk 0:00:58]}  Rd8 {[%clk 0:01:15]} 27. h4 {[%clk 0:00:53]}  Qc7 {[%clk 0:01:15]} 28. Qe3 {[%clk 0:00:48]}  Rd6 {[%clk 0:01:11]} 29. h5 {[%clk 0:00:39]}  Qe7 {[%clk 0:01:08]} 30. h6 {[%clk 0:00:39]}  Qf6 {[%clk 0:01:06]} 31. Rb1 {[%clk 0:00:38]}  Ra8 {[%clk 0:01:02]} 32. Rb7 {[%clk 0:00:37]}  Rad8 {[%clk 0:01:01]} 33. Nb3 {[%clk 0:00:24]}  f4 {[%clk 0:01:01]} 34. Qe4 {[%clk 0:00:21]}  g5 {[%clk 0:01:01]} 35. c5 {[%clk 0:00:20]}  Rd5 {[%clk 0:00:59]} 36. Rxd5 {[%clk 0:00:21]}  exd5 {[%clk 0:00:57]} 37. Qe7 {[%clk 0:00:18]}  Qxe7 {[%clk 0:00:54]} 38. Rxe7 {[%clk 0:00:19]}  Rb8 {[%clk 0:00:54]} 39. Na5 {[%clk 0:00:19]}  g4 {[%clk 0:00:50]} 40. Nxc6 {[%clk 0:00:19]}  Rb1+ {[%clk 0:00:49]} 41. Kh2 {[%clk 0:00:19]}  Rb2 {[%clk 0:00:42]} 42. Ne5 {[%clk 0:00:20]}  Rxf2 {[%clk 0:00:40]} 43. Nxg4 {[%clk 0:00:16]}  Rd2 {[%clk 0:00:36]} 44. c6 {[%clk 0:00:16]}  f3 {[%clk 0:00:32]} 45. c7 {[%clk 0:00:13]}  Rxg2+ {[%clk 0:00:31]} 46. Kh3 {[%clk 0:00:14]}  Rc2 {[%clk 0:00:31]} 47. Kg3 {[%clk 0:00:15]}  Bh5 {[%clk 0:00:30]} 48. Nf6+ {[%clk 0:00:14]}  Kf8 {[%clk 0:00:29]} 49. Rd7 {[%clk 0:00:13]}  f2 {[%clk 0:00:27]} 50. Nxh7+ {[%clk 0:00:14]}  Ke8 {[%clk 0:00:26]} 51. Nf6+ {[%clk 0:00:15]}  Kf8 {[%clk 0:00:27]} 52. h7 {[%clk 0:00:15]}  f1=Q {[%clk 0:00:20]} 53. h8=Q# {[%clk 0:00:14]} 1-0


[Site "https://www.chess.com"]

[Event "Titled Tuesday Blitz August 1 Early 2023"]
[White "Goltseva, Ekaterina"]
[Black "Weetik, Vjacheslav"]
[WhiteFideId "24173770"]
[BlackFideId "4153472"]
[WhiteElo "2531"]
[BlackElo "2740"]
[Result "0-1"]
[Round "5"]
[TimeControl "180+1"]
[Date "2023.08.01"]
[WhiteClock "0:00:00"]
[BlackClock "0:00:07"]
[Board "53"]

1. Nf3 {[%clk 0:03:00]}  Nf6 {[%clk 0:02:59]} 2. c4 {[%clk 0:02:59]}  e6 {[%clk 0:02:59]} 3. Nc3 {[%clk 0:02:55]}  d5 {[%clk 0:02:52]} 4. d4 {[%clk 0:02:52]}  c6 {[%clk 0:02:52]} 5. cxd5 {[%clk 0:02:48]}  exd5 {[%clk 0:02:51]} 6. Bg5 {[%clk 0:02:46]}  Bf5 {[%clk 0:02:43]} 7. Nh4 {[%clk 0:02:36]}  Be6 {[%clk 0:02:36]} 8. Nf3 {[%clk 0:02:29]}  h6 {[%clk 0:02:34]} 9. Bh4 {[%clk 0:02:26]}  Bf5 {[%clk 0:02:28]} 10. h3 {[%clk 0:02:22]}  Nbd7 {[%clk 0:02:24]} 11. g4 {[%clk 0:02:18]}  Bh7 {[%clk 0:02:14]} 12. e3 {[%clk 0:02:05]}  Qa5 {[%clk 0:01:53]} 13. Nd2 {[%clk 0:01:52]}  Bd6 {[%clk 0:01:53]} 14. Nb3 {[%clk 0:01:47]}  Qc7 {[%clk 0:01:46]} 15. Rg1 {[%clk 0:01:43]}  Ne4 {[%clk 0:01:27]} 16. Rc1 {[%clk 0:01:33]}  Nxc3 {[%clk 0:01:21]} 17. bxc3 {[%clk 0:01:31]}  Ba3 {[%clk 0:01:08]} 18. Bg3 {[%clk 0:01:09]}  Qd8 {[%clk 0:00:59]} 19. Be2 {[%clk 0:00:54]}  O-O {[%clk 0:00:50]} 20. Bf4 {[%clk 0:00:44]}  g5 {[%clk 0:00:44]} 21. Bg3 {[%clk 0:00:40]}  Qe7 {[%clk 0:00:35]} 22. h4 {[%clk 0:00:37]}  Nf6 {[%clk 0:00:20]} 23. hxg5 {[%clk 0:00:29]}  hxg5 {[%clk 0:00:20]} 24. Be5 {[%clk 0:00:26]}  Nd7 {[%clk 0:00:19]} 25. Bg3 {[%clk 0:00:25]}  Bxc1 {[%clk 0:00:19]} 26. Qxc1 {[%clk 0:00:25]}  Kg7 {[%clk 0:00:18]} 27. c4 {[%clk 0:00:19]}  Nb6 {[%clk 0:00:16]} 28. c5 {[%clk 0:00:17]}  Nd7 {[%clk 0:00:12]} 29. Bd6 {[%clk 0:00:17]}  Qe6 {[%clk 0:00:12]} 30. Nd2 {[%clk 0:00:10]}  Rh8 {[%clk 0:00:12]} 31. Nf3 {[%clk 0:00:10]}  f6 {[%clk 0:00:12]} 32. Nd2 {[%clk 0:00:04]}  Bg6 {[%clk 0:00:11]} 33. Nf1 {[%clk 0:00:04]}  b5 {[%clk 0:00:10]} 34. Ng3 {[%clk 0:00:04]}  Rh4 {[%clk 0:00:06]} 35. Qd1 {[%clk 0:00:04]}  Rah8 {[%clk 0:00:06]} 36. Bd3 {[%clk 0:00:04]}  Nf8 {[%clk 0:00:05]} 37. Bf5 {[%clk 0:00:03]}  Qe8 {[%clk 0:00:04]} 38. Qd3 {[%clk 0:00:03]}  Qf7 {[%clk 0:00:03]} 39. Bxg6 {[%clk 0:00:02]}  Nxg6 {[%clk 0:00:03]} 40. Nf5+ {[%clk 0:00:03]}  Kg8 {[%clk 0:00:04]} 41. Nxh4 {[%clk 0:00:03]}  Nxh4 {[%clk 0:00:04]} 42. Ke2 {[%clk 0:00:03]}  Qg6 {[%clk 0:00:04]} 43. Qb3 {[%clk 0:00:02]}  Qe4 {[%clk 0:00:03]} 44. Rg3 {[%clk 0:00:03]}  Ng6 {[%clk 0:00:02]} 45. a4 {[%clk 0:00:03]}  a6 {[%clk 0:00:02]} 46. axb5 {[%clk 0:00:03]}  axb5 {[%clk 0:00:03]} 47. Qa2 {[%clk 0:00:03]}  Kf7 {[%clk 0:00:02]} 48. Qa7+ {[%clk 0:00:04]}  Ne7 {[%clk 0:00:02]} 49. Kf1 {[%clk 0:00:03]}  Qh1+ {[%clk 0:00:01]} 50. Ke2 {[%clk 0:00:03]}  Qe4 {[%clk 0:00:02]} 51. Rg1 {[%clk 0:00:02]}  Rh3 {[%clk 0:00:02]} 52. Qa2 {[%clk 0:00:01]}  Qf3+ {[%clk 0:00:02]} 53. Ke1 {[%clk 0:00:02]}  Rh1 {[%clk 0:00:02]} 54. Rxh1 {[%clk 0:00:01]}  Qxh1+ {[%clk 0:00:03]} 55. Ke2 {[%clk 0:00:02]}  Qe4 {[%clk 0:00:04]} 56. f3 {[%clk 0:00:02]}  Qe6 {[%clk 0:00:04]} 57. Qd2 {[%clk 0:00:02]}  Ng6 {[%clk 0:00:04]} 58. Qc3 {[%clk 0:00:02]}  f5 {[%clk 0:00:04]} 59. Kf2 {[%clk 0:00:01]}  fxg4 {[%clk 0:00:05]} 60. fxg4 {[%clk 0:00:01]}  Qxg4 {[%clk 0:00:06]} 61. Qa1 {[%clk 0:00:01]}  Qf5+ {[%clk 0:00:06]} 62. Ke2 {[%clk 0:00:02]}  Qc2+ {[%clk 0:00:05]} 63. Kf3 {[%clk 0:00:02]}  Nh4+ {[%clk 0:00:06]} 64. Kg3 {[%clk 0:00:03]}  Qf5 {[%clk 0:00:06]} 65. Qg1 {[%clk 0:00:02]}  Qf3+ {[%clk 0:00:05]} 66. Kh2 {[%clk 0:00:02]}  Qe2+ {[%clk 0:00:05]} 67. Kh1 {[%clk 0:00:02]}  Qf3+ {[%clk 0:00:05]} 68. Kh2 {[%clk 0:00:02]}  Kg6 {[%clk 0:00:06]} 69. Qg3 {[%clk 0:00:02]}  Qxg3+ {[%clk 0:00:06]} 70. Kxg3 {[%clk 0:00:02]}  Nf5+ {[%clk 0:00:07]} 71. Kf3 {[%clk 0:00:02]}  Nxd6 {[%clk 0:00:07]} 72. cxd6 {[%clk 0:00:03]}  Kf6 {[%clk 0:00:08]} 73. d7 {[%clk 0:00:02]}  Ke7 {[%clk 0:00:08]} 74. Kg4 {[%clk 0:00:01]}  b4 {[%clk 0:00:07]} 75. Kxg5 {[%clk 0:00:00]}  b3 {[%clk 0:00:07]} 0-1


[Site "https://www.chess.com"]

[Event "Titled Tuesday Blitz August 1 Early 2023"]
[White "Preotu, Razvan"]
[Black "Kleiman, Jake"]
[WhiteFideId "2613280"]
[BlackFideId "2020041"]
[WhiteElo "2736"]
[BlackElo "2514"]
[Result "0-1"]
[Round "5"]
[TimeControl "180+1"]
[Date "2023.08.01"]
[WhiteClock "0:00:00"]
[BlackClock "0:00:35"]
[Board "55"]

1. e4 {[%clk 0:03:00]}  e5 {[%clk 0:02:59]} 2. Nf3 {[%clk 0:03:01]}  Nc6 {[%clk 0:03:00]} 3. Bc4 {[%clk 0:03:01]}  Bc5 {[%clk 0:02:59]} 4. c3 {[%clk 0:03:01]}  Nf6 {[%clk 0:03:00]} 5. d3 {[%clk 0:03:02]}  O-O {[%clk 0:03:00]} 6. O-O {[%clk 0:03:02]}  d5 {[%clk 0:03:00]} 7. exd5 {[%clk 0:03:03]}  Nxd5 {[%clk 0:03:01]} 8. Re1 {[%clk 0:03:02]}  Nb6 {[%clk 0:03:02]} 9. Bb3 {[%clk 0:03:01]}  Re8 {[%clk 0:02:57]} 10. Ng5 {[%clk 0:02:42]}  Be6 {[%clk 0:02:50]} 11. Nxe6 {[%clk 0:01:12]}  fxe6 {[%clk 0:02:51]} 12. Be3 {[%clk 0:01:08]}  Bxe3 {[%clk 0:02:49]} 13. Rxe3 {[%clk 0:01:09]}  Nd5 {[%clk 0:02:49]} 14. Re4 {[%clk 0:00:56]}  Nf4 {[%clk 0:02:23]} 15. d4 {[%clk 0:00:56]}  Qg5 {[%clk 0:02:23]} 16. Qf3 {[%clk 0:00:50]}  Rf8 {[%clk 0:02:18]} 17. Na3 {[%clk 0:00:28]}  exd4 {[%clk 0:02:01]} 18. Qg3 {[%clk 0:00:23]}  Qf5 {[%clk 0:01:31]} 19. Rae1 {[%clk 0:00:23]}  dxc3 {[%clk 0:01:24]} 20. Rxe6 {[%clk 0:00:21]}  Kh8 {[%clk 0:01:24]} 21. R6e3 {[%clk 0:00:10]}  cxb2 {[%clk 0:01:22]} 22. Bc2 {[%clk 0:00:10]}  Qc5 {[%clk 0:01:16]} 23. Qh4 {[%clk 0:00:09]}  h6 {[%clk 0:01:15]} 24. Rf3 {[%clk 0:00:06]}  Nd4 {[%clk 0:00:54]} 25. Rxf4 {[%clk 0:00:05]}  Rxf4 {[%clk 0:00:47]} 26. Qxf4 {[%clk 0:00:06]}  Nxc2 {[%clk 0:00:48]} 27. Nxc2 {[%clk 0:00:03]}  Qxc2 {[%clk 0:00:49]} 28. Qb4 {[%clk 0:00:03]}  Rd8 {[%clk 0:00:44]} 29. g3 {[%clk 0:00:02]}  Qc1 {[%clk 0:00:34]} 30. Kg2 {[%clk 0:00:02]}  c5 {[%clk 0:00:35]} 31. Qa5 {[%clk 0:00:00]}  b6 {[%clk 0:00:35]} 0-1


[Site "https://www.chess.com"]